bitfinex/quotes_ETHUSD_20250807
["timestamp","ask_amount","ask_price","bid_price","bid_amount"]
[1754603149112,5.15506542,3866.5,3866.4,2.58638526]
[1754603150119,5.75506542,3866.5,3866.4,2.58638526]
[1754603150620,5.75406542,3866.5,3866.4,2.58638526]
[1754603150825,5.15406542,3866.5,3866.4,2.58638526]
[1754603152022,4.71576542,3866.5,3866.4,2.58638526]
[1754603152220,1.15706542,3866.5,3866.4,2.58638526]
[1754603152428,5.15206542,3866.5,3866.4,2.58638526]
[1754603152898,5.15206542,3866.5,3866.1,2.71611983]
[1754603153221,1.15706542,3866.4,3866.3,2.58645216]
[1754603153804,0.90706542,3866.4,3866.3,2.58645216]
[1754603154125,3.997,3866.5,3866.4,2.58638526]
[1754603154289,4.475,3866.5,3866.4,2.58638526]
[1754603154492,4.474,3866.5,3866.4,2.58638526]
[1754603155526,4.474,3866.5,3866.3,2.58642718]
[1754603155742,3.993,3866.4,3866.3,2.58642718]
[1754603156037,4.9093,3866.4,3866.3,2.58642718]
[1754603157439,0.9163,3866.4,3866.3,2.58642718]
[1754603157645,4.9073,3866.4,3866.3,2.58642718]
[1754603165040,7.9073,3866.4,3866.0,0.001]
[1754603165211,5.4849103,3866.3,3866.0,0.001]
[1754603165609,0.9163,3866.2,3866.0,0.001]
[1754603165934,4.22821005,3866.1,3866.0,0.001]
[1754603166242,5.14451005,3866.1,3866.0,0.001]
[1754603166431,5.74451005,3866.1,3866.0,0.001]
[1754603168344,6.52186805,3866.1,3866.0,0.001]
[1754603169544,2.53486805,3866.1,3866.0,0.001]
[1754603169716,7.07235486,3866.1,3866.0,0.001]
[1754603169917,6.51886805,3866.1,3866.0,0.001]
[1754603170123,6.51844593,3866.1,3866.0,0.001]
[1754603171720,6.51644593,3866.1,3866.0,0.001]
[1754603172939,6.275658,3866.1,3866.0,0.001]
[1754603173143,6.51629446,3866.1,3866.0,0.001]
[1754603173729,6.49257429,3866.1,3866.0,0.001]
[1754603174331,6.4925653,3866.1,3866.0,0.001]
[1754603175144,6.6221653,3866.1,3866.0,0.001]
[1754603175728,6.6221653,3866.1,3865.8,2.58678065]
[1754603175929,2.58692052,3865.6,3865.5,0.001]
[1754603176127,9.80546661,3865.6,3865.5,0.001]
[1754603176332,8.11114609,3865.6,3865.5,0.001]
[1754603176532,8.9222607,3865.6,3865.5,0.001]
[1754603179851,4.9442607,3865.6,3865.5,0.001]
[1754603180021,8.9242607,3865.6,3865.5,0.001]
[1754603182044,8.68371461,3865.6,3865.5,0.001]
[1754603182349,8.49188517,3865.6,3865.5,0.001]
[1754603182547,8.92368517,3865.6,3865.5,0.001]
[1754603183351,8.92369563,3865.6,3865.5,0.001]
[1754603183957,7.68078102,3865.6,3865.5,0.001]
[1754603184658,8.11258102,3865.6,3865.5,0.001]
[1754603185354,7.68078102,3865.6,3865.5,0.001]
[1754603185924,8.24218102,3865.6,3865.5,0.001]
[1754603186227,9.01960602,3865.6,3865.5,0.001]
[1754603186986,8.12700602,3865.6,3865.5,0.001]
[1754603187135,0.907025,3865.6,3865.5,2.58798745]
[1754603189545,0.777425,3865.6,3865.5,2.58798745]
[1754603189929,0.777425,3865.6,3865.5,2.59018745]
[1754603190858,0.777425,3865.6,3865.5,2.58798745]
[1754603191859,0.777425,3865.6,3865.5,3.05406745]
[1754603192064,0.777425,3865.6,3865.5,2.58798745]
[1754603192569,0.002,3866.4,3866.3,2.58645216]
[1754603192739,0.4338,3866.4,3866.3,6.55945216]
[1754603193166,0.8946,3866.4,3866.3,6.55945216]
[1754603193371,1.671803,3866.4,3866.3,6.55945216]
[1754603193576,1.91198232,3866.4,3866.3,6.55945216]
[1754603194484,1.91198232,3866.4,3866.3,2.58645216]
[1754603194688,1.91198232,3866.4,3866.3,6.56045216]
[1754603196487,1.671803,3866.4,3866.3,6.56045216]
[1754603196679,1.671803,3866.4,3866.3,6.55745216]
[1754603197758,1.671803,3866.4,3866.3,3.971]
[1754603198396,1.671803,3866.4,3866.3,6.55745216]
[1754603200494,1.671803,3866.4,3866.3,3.97]
[1754603201103,1.671803,3866.4,3866.3,6.55645216]
[1754603201601,1.671803,3866.4,3866.3,6.55445216]
[1754603201903,1.671803,3866.4,3866.3,3.968]
[1754603203270,0.779203,3866.4,3866.3,6.55445216]
[1754603203470,1.246203,3866.4,3866.3,6.55445216]
[1754603203671,1.709503,3866.4,3866.3,6.55445216]
[1754603204802,1.709503,3866.4,3866.3,6.55245216]
[1754603205785,1.709503,3866.4,3866.3,6.55145216]
[1754603206110,1.709503,3866.4,3866.3,2.58645216]
[1754603206274,1.709503,3866.4,3866.3,6.55145216]
[1754603206804,1.559503,3866.4,3866.3,6.55145216]
[1754603207103,0.9303,3866.4,3866.3,6.55145216]
[1754603208200,0.779203,3866.5,3866.4,2.58638526]
[1754603209412,1.246203,3866.5,3866.3,3.965]
[1754603210413,1.246203,3866.5,3866.3,6.55143901]
[1754603211986,1.246203,3866.5,3866.3,2.58643901]
[1754603212287,1.242503,3866.5,3866.4,3.965]
[1754603212720,1.709503,3866.5,3866.3,2.58643901]
[1754603212887,1.242503,3866.5,3866.4,3.965]
[1754603213087,0.779203,3866.5,3866.4,3.965]
[1754603213610,1.246203,3866.5,3866.4,3.965]
[1754603213809,1.48647631,3866.5,3866.4,3.965]
[1754603214819,1.94977631,3866.5,3866.4,3.965]
[1754603217291,1.48647631,3866.5,3866.4,3.965]
[1754603217512,1.01947631,3866.5,3866.4,3.965]
[1754603217713,0.779203,3866.5,3866.4,6.55138526]
[1754603217919,0.24260608,3866.5,3866.4,6.55138526]
[1754603218089,0.70960608,3866.5,3866.4,3.965]
[1754603218923,0.70963843,3866.5,3866.4,3.965]
[1754603219330,0.24263843,3866.5,3866.4,6.55138526]
[1754603220015,0.70963843,3866.5,3866.3,2.58643496]
[1754603220199,0.002,3866.5,3866.4,3.964]
[1754603220404,0.24270852,3866.5,3866.4,3.964]
[1754603221010,0.70970852,3866.5,3866.4,3.964]
[1754603221530,0.70970852,3866.5,3866.4,6.55038526]
[1754603221920,1.17300852,3866.5,3866.4,6.55038526]
[1754603222330,1.17300852,3866.5,3866.4,3.964]
[1754603223295,1.17300852,3866.5,3866.4,6.55038526]
[1754603224619,1.17319753,3866.5,3866.4,6.55038526]
[1754603225119,1.17319753,3866.5,3866.4,3.964]
[1754603225293,1.30279753,3866.5,3866.4,3.964]
[1754603225689,1.0619,3866.5,3866.3,0.001]
[1754603225926,0.24092285,3866.4,3866.3,0.001]
[1754603226130,0.24092285,3866.4,3866.3,3.965]
[1754603226595,0.70792285,3866.4,3866.3,6.55145216]
[1754603226915,0.70792575,3866.4,3866.3,6.55145216]
[1754603227626,0.24092575,3866.4,3866.3,6.55145216]
[1754603228295,1.17122575,3866.4,3866.3,6.55145216]
[1754603228496,0.70792575,3866.4,3866.3,6.55145216]
[1754603229123,0.24092575,3866.4,3866.3,6.55145216]
[1754603230017,0.24092575,3866.4,3866.3,2.58745216]
[1754603230212,0.24092575,3866.4,3866.3,6.55145216]
[1754603230534,1.17122575,3866.4,3866.3,3.965]
[1754603231898,0.70792575,3866.4,3866.3,6.55145216]
[1754603233805,0.24092575,3866.4,3866.3,6.55145216]
[1754603234003,1.16592575,3866.4,3866.3,6.55145216]
[1754603234200,0.24111743,3866.4,3866.3,6.55145216]
[1754603234628,0.002,3866.5,3866.4,2.58638526]
[1754603234828,0.68992178,3866.5,3866.4,2.58638526]
[1754603235103,0.68992178,3866.5,3866.4,6.55038526]
[1754603235297,1.16812386,3866.5,3866.4,6.55038526]
[1754603235915,1.76812386,3866.5,3866.4,6.55038526]
[1754603237810,1.527,3866.5,3866.4,6.55038526]
[1754603238726,0.602,3866.5,3866.4,6.55038526]
[1754603238921,1.0802,3866.5,3866.4,6.55038526]
[1754603239145,1.0802,3866.5,3866.3,0.001]
[1754603239146,1.527,3866.5,3866.3,0.001]
[1754603239322,0.602,3866.5,3866.4,3.964]
[1754603239730,0.84315916,3866.5,3866.4,3.964]
[1754603239936,1.527,3866.5,3866.4,3.964]
[1754603242756,0.602,3866.5,3866.4,6.55038526]
[1754603242922,1.76822451,3866.5,3866.4,6.55038526]
[1754603243542,1.32142451,3866.5,3866.4,6.55038526]
[1754603244246,1.0802,3866.5,3866.4,6.55038526]
[1754603244420,0.602,3866.5,3866.4,6.55038526]
[1754603244743,0.84329836,3866.5,3866.4,6.55038526]
[1754603246371,0.84334033,3866.5,3866.4,2.58638526]
[1754603246532,0.84334033,3866.5,3866.4,6.54938526]
[1754603247433,1.32154033,3866.5,3866.4,6.54938526]
[1754603247836,0.84334033,3866.5,3866.4,6.54938526]
[1754603248438,0.602,3866.5,3866.4,6.54938526]
[1754603248672,1.32157706,3866.5,3866.4,6.54938526]
[1754603248945,0.042,3866.9,3866.7,5.5861846]
[1754603248946,1e-08,3866.9,3866.7,5.5861846]
[1754603249147,1e-08,3866.9,3866.8,18.54634625]
[1754603249327,1e-08,3866.9,3866.8,18.55554625]
[1754603249526,1e-08,3866.9,3866.8,18.55774625]
[1754603250166,1e-08,3866.9,3866.8,18.7528308]
[1754603250762,1e-08,3866.9,3866.8,19.86647007]
[1754603250962,1e-08,3867.2,3867.1,2.58591709]
[1754603251165,1e-08,3867.2,3867.1,19.65878489]
[1754603251337,1e-08,3867.2,3867.1,19.67018489]
[1754603251670,0.002,3867.5,3867.3,2.58578336]
[1754603251867,0.002,3867.5,3867.4,6.962]
[1754603252037,0.002,3867.5,3867.4,17.0842678]
[1754603252869,0.002,3867.5,3867.4,19.6699843]
[1754603254452,0.002,3867.6,3867.5,5.58564964]
[1754603254653,0.002,3867.6,3867.5,5.59704964]
[1754603254868,0.4242,3868.4,3868.3,2.5851149]
[1754603255172,0.4242,3868.4,3868.3,6.5471149]
[1754603256337,0.002,3868.5,3868.4,2.58504808]
[1754603257276,0.002,3868.5,3868.4,2.77055973]
[1754603257970,0.002,3868.8,3868.7,2.58484762]
[1754603258179,0.002,3868.8,3868.7,16.65671542]
[1754603258379,1e-08,3868.9,3868.8,5.58478081]
[1754603258559,1e-08,3868.9,3868.8,5.65018081]
[1754603258760,1e-08,3868.9,3868.8,5.84720166]
[1754603258968,0.002,3869.3,3869.0,2.58464719]
[1754603259161,0.002,3869.7,3869.6,2.58424643]
[1754603259354,0.002,3869.7,3869.6,6.67384643]
[1754603259554,0.002,3869.7,3869.6,16.78471423]
[1754603260854,1e-08,3869.7,3869.6,19.84091423]
[1754603261057,1e-08,3869.9,3869.8,5.58411287]
[1754603261251,1e-08,3869.9,3869.8,10.09411287]
[1754603261546,0.4782,3871.4,3870.6,2.583534]
[1754603261746,0.4468,3871.5,3871.3,2.58311161]
[1754603261946,4.776079,3872.9,3871.3,2.58311161]
[1754603261947,0.4782,3872.1,3871.8,2.58277803]
[1754603262147,0.816079,3872.9,3871.8,2.58277803]
[1754603262148,0.13499555,3872.8,3871.8,6.54277803]
[1754603262347,0.925,3872.7,3872.6,2.58224448]
[1754603262675,0.925,3872.7,3872.6,6.54224448]
[1754603263475,0.04,3873.9,3872.6,6.54224448]
[1754603263476,0.04,3873.9,3872.8,2.58211113]
[1754603263676,0.04,3873.9,3873.8,2.58144457]
[1754603264082,0.04,3873.9,3873.8,6.55444457]
[1754603264378,0.5361,3873.9,3873.8,6.55444457]
[1754603264546,0.5361,3873.9,3873.8,2.58144457]
[1754603264746,0.5361,3874.9,3874.8,2.58077836]
[1754603264985,0.04,3874.9,3874.8,2.58077836]
[1754603265340,0.5361,3874.9,3874.8,6.55577836]
[1754603265677,0.9756,3874.9,3874.8,6.55577836]
[1754603266248,0.04,3874.9,3874.8,7.02185836]
[1754603266574,0.04,3874.9,3874.8,2.58077836]
[1754603267082,0.5361,3874.9,3874.8,6.55577836]
[1754603267661,0.04,3874.9,3874.8,6.55577836]
[1754603268153,0.04,3874.9,3874.8,2.58077836]
[1754603268355,0.04,3874.9,3874.8,6.55277836]
[1754603269370,1e-08,3874.9,3874.8,9.55477836]
[1754603269572,1e-08,3874.9,3874.8,5.58077836]
[1754603269771,1e-08,3874.9,3874.8,9.55477836]
[1754603270695,1e-08,3874.9,3874.8,10.01077836]
[1754603270850,1e-08,3874.9,3874.8,5.58077836]
[1754603271049,1e-08,3874.9,3874.8,9.55277836]
[1754603271249,1e-08,3874.9,3874.8,10.68757836]
[1754603273389,1e-08,3874.9,3874.8,10.74377836]
[1754603273698,1e-08,3874.9,3874.8,10.68757836]
[1754603273856,1e-08,3874.9,3874.8,10.74377836]
[1754603274057,1e-08,3874.9,3874.8,10.84713836]
[1754603274595,1e-08,3874.9,3874.8,6.36293836]
[1754603274770,1e-08,3874.9,3874.8,10.78793836]
[1754603275195,1e-08,3875.1,3875.0,2.58064516]
[1754603275496,1e-08,3875.1,3875.0,9.54864516]
[1754603275701,1e-08,3875.1,3875.0,10.06084516]
[1754603275912,1e-08,3875.1,3875.0,10.18964516]
[1754603276086,1e-08,3875.9,3875.8,2.58011249]
[1754603276282,1e-08,3875.9,3875.8,10.22591249]
[1754603276484,1e-08,3875.9,3875.8,10.73811249]
[1754603277306,1e-08,3875.9,3875.8,10.93415778]
[1754603277711,0.04,3877.9,3877.8,2.57878178]
[1754603278009,0.04,3877.9,3877.8,6.55078178]
[1754603278218,0.04,3877.9,3877.8,6.67958178]
[1754603278511,0.4795,3877.9,3877.8,6.67958178]
[1754603278723,0.04,3877.9,3877.8,6.67958178]
[1754603278873,0.4795,3877.9,3877.8,6.67958178]
[1754603279278,0.04,3877.9,3877.8,6.67958178]
[1754603279499,0.04,3877.9,3877.8,9.67958178]
[1754603279706,0.5361,3877.9,3877.8,9.67958178]
[1754603279884,0.04,3877.9,3877.8,9.67958178]
[1754603280091,1e-08,3877.9,3877.8,9.67958178]
[1754603280297,1e-08,3877.9,3877.8,23.0471394]
[1754603280596,1e-08,3877.9,3877.8,23.5409394]
[1754603280907,1e-08,3877.9,3877.8,23.9969394]
[1754603281120,0.4961,3879.5,3879.4,2.5777182]
[1754603281409,0.9356,3879.5,3879.4,6.5517182]
[1754603281616,0.43950001,3879.9,3879.8,2.57745244]
[1754603281826,0.13383177,3879.9,3879.0,2.57797112]
[1754603281976,0.13383177,3879.9,3879.1,3.977]
[1754603282391,1e-08,3879.9,3879.7,2.57748545]
[1754603282589,1e-08,3879.9,3879.8,3.977]
[1754603282981,0.43950001,3879.9,3879.5,2.57765175]
[1754603283290,0.43950001,3879.9,3879.6,3.976]
[1754603283508,0.4961,3879.8,3879.6,3.976]
[1754603283704,0.4395,3879.7,3879.3,2.57771832]
[1754603284011,0.4961,3879.6,3879.4,6.55171571]
[1754603284342,1e-08,3879.9,3879.5,2.57765175]
[1754603284520,1e-08,3879.9,3879.6,3.974]
[1754603284847,1e-08,3879.9,3879.7,3.974]
[1754603284848,0.9356,3879.8,3879.7,3.974]
[1754603285415,0.9356,3879.8,3879.7,6.55151888]
[1754603285940,0.4961,3879.8,3879.7,6.55151888]
[1754603286141,1e-08,3879.9,3879.8,2.57745244]
[1754603286700,1e-08,3879.9,3879.8,3.07125244]
[1754603286915,1e-08,3879.9,3879.8,2.57745244]
[1754603287351,1e-08,3879.9,3879.8,3.52725244]
[1754603288711,1e-08,3879.9,3879.8,4.07725244]
[1754603289222,1e-08,3879.9,3879.8,7.07725244]
[1754603289830,1e-08,3879.9,3879.8,11.04925244]
[1754603290327,1e-08,3880.2,3880.1,18.88455745]
[1754603290518,1e-08,3880.2,3880.1,22.99035745]
[1754603290719,1e-08,3880.2,3880.1,23.94015745]
[1754603293251,1e-08,3880.2,3880.1,19.96315745]
[1754603293456,1e-08,3881.1,3881.0,2.5766555]
[1754603293662,1e-08,3881.1,3881.0,10.1006555]
[1754603293825,1e-08,3881.1,3881.0,10.2294555]
[1754603294152,1e-08,3881.1,3881.0,7.1786555]
[1754603294358,1e-08,3881.1,3881.0,11.1626555]
[1754603294558,1e-08,3881.1,3881.0,10.7143555]
[1754603294924,1e-08,3881.1,3881.0,7.1786555]
[1754603295242,1e-08,3881.1,3881.0,10.2374555]
[1754603295642,1e-08,3881.1,3881.0,6.2554555]
[1754603295845,1e-08,3881.1,3881.0,11.1606555]
[1754603296057,1e-08,3881.9,3881.8,6.12612447]
[1754603296275,1e-08,3881.9,3881.8,29.05442876]
[1754603296634,1e-08,3881.9,3881.8,25.67712876]
[1754603296838,1e-08,3881.9,3881.8,29.66312876]
[1754603297040,1e-08,3881.9,3881.8,29.85757549]
[1754603297239,1e-08,3881.9,3881.8,26.31987549]
[1754603297664,1e-08,3881.9,3881.8,30.30487549]
[1754603297828,1e-08,3881.9,3881.8,30.30387549]
[1754603298166,1e-08,3881.9,3881.8,17.0962712]
[1754603298328,1e-08,3881.9,3881.8,12.0873712]
[1754603298532,0.93990001,3881.9,3881.8,9.8823712]
[1754603298734,1e-08,3881.9,3881.8,9.8823712]
[1754603299041,1e-08,3881.9,3881.8,10.4323712]
[1754603299365,1e-08,3881.9,3881.8,10.4383712]
[1754603299931,1e-08,3881.9,3881.8,10.4413712]
[1754603300351,1e-08,3881.9,3881.8,6.4493712]
[1754603300529,0.93990001,3881.9,3881.8,10.4413712]
[1754603301262,0.93990001,3881.9,3881.8,6.4493712]
[1754603301464,0.93990001,3881.9,3881.8,10.4413712]
[1754603301962,0.46770001,3881.9,3881.8,10.4413712]
[1754603302263,0.46770001,3881.9,3881.8,6.4493712]
[1754603302560,0.93990001,3881.9,3881.8,10.4403712]
[1754603303067,0.93990001,3881.9,3881.8,10.4393712]
[1754603304366,0.93990001,3881.9,3881.8,6.4493712]
[1754603304574,1e-08,3881.9,3881.8,10.4373712]
[1754603305235,1e-08,3881.9,3881.8,6.4493712]
[1754603305436,0.46770001,3881.9,3881.8,10.4373712]
[1754603305734,1e-08,3881.9,3881.8,10.4373712]
[1754603306348,0.46770001,3881.9,3881.8,10.4373712]
[1754603306543,0.46770001,3881.9,3881.8,6.4493712]
[1754603306748,0.93990001,3881.9,3881.8,10.4373712]
[1754603307049,0.93990001,3881.9,3881.8,10.4353712]
[1754603307368,0.93990001,3881.9,3881.8,10.4343712]
[1754603307882,0.46770001,3881.9,3881.8,6.4493712]
[1754603308101,0.93990001,3881.9,3881.8,10.4343712]
[1754603308668,0.93990001,3881.9,3881.8,5.8993712]
[1754603308866,0.46770001,3881.9,3881.8,9.8843712]
[1754603309071,1e-08,3881.9,3881.8,9.8843712]
[1754603311160,1e-08,3882.3,3882.2,3.12585904]
[1754603311360,4.65589115,3882.9,3882.8,2.575461]
[1754603311556,4.65589115,3882.9,3882.8,6.557461]
[1754603312274,4.55589115,3882.9,3882.8,6.686261]
[1754603312637,4.55589115,3882.9,3882.8,6.688261]
[1754603313944,4.55589115,3882.9,3882.8,6.686261]
[1754603314581,4.55589115,3882.9,3882.8,9.686261]
[1754603315246,5.02359115,3882.9,3882.8,9.686261]
[1754603315448,5.02359115,3882.9,3882.8,9.684261]
[1754603315978,4.55589115,3882.9,3882.8,9.684261]
[1754603317577,1.87448151,3882.9,3882.8,9.684261]
[1754603318083,0.002,3883.1,3883.0,2.57532835]
[1754603318377,0.002,3883.1,3883.0,9.55332835]
[1754603318578,0.002,3883.1,3883.0,9.68212835]
[1754603319897,0.002,3883.1,3883.0,9.68112835]
[1754603320041,0.9419,3883.1,3883.0,5.70412835]
[1754603320249,0.9419,3883.1,3883.0,9.68012835]
[1754603320459,0.9419,3883.1,3883.0,5.70412835]
[1754603320649,0.9419,3883.1,3883.0,9.68012835]
[1754603320981,0.002,3883.1,3883.0,9.68012835]
[1754603321284,0.002,3883.1,3883.0,5.70412835]
[1754603321588,0.002,3883.1,3883.0,9.67912835]
[1754603322163,0.002,3883.1,3883.0,9.67812835]
[1754603322688,0.002,3883.1,3883.0,5.70412835]
[1754603322848,0.9419,3883.1,3883.0,9.67812835]
[1754603323251,0.002,3883.1,3883.0,9.67812835]
[1754603324378,1e-08,3883.1,3883.0,9.67812835]
[1754603325455,1e-08,3883.1,3883.0,6.12532835]
[1754603325659,1e-08,3883.1,3883.0,10.09832835]
[1754603326195,1e-08,3883.1,3883.0,10.57592835]
[1754603326369,1e-08,3883.1,3883.0,11.02472835]
[1754603326569,1e-08,3883.1,3883.0,10.57792835]
[1754603326958,1e-08,3883.1,3883.0,6.60292835]
[1754603327221,0.11890001,3883.9,3883.8,2.57479787]
[1754603327397,0.11890001,3883.9,3883.8,6.55579787]
[1754603327617,2.57375005,3885.4,3883.8,6.55579787]
[1754603327775,3.0,3885.3,3884.5,2.57432519]
[1754603327969,2.57326145,3886.2,3884.7,2.57419967]
[1754603327970,2.57362265,3885.6,3884.7,2.57419967]
[1754603328298,2.57362265,3885.6,3884.8,3.98]
[1754603329029,2.57362265,3885.6,3883.5,12.75730429]
[1754603329030,0.5136,3884.9,3884.5,6.55427736]
[1754603329321,0.4769,3884.8,3884.5,6.55427736]
[1754603329523,0.4769,3884.8,3884.7,2.57420135]
[1754603329814,0.04,3884.9,3884.8,2.57413509]
[1754603330416,0.9905,3884.9,3884.8,2.57413509]
[1754603330612,0.9905,3884.9,3884.8,6.55313509]
[1754603330782,0.9905,3884.9,3884.8,6.55213509]
[1754603330983,0.04,3884.9,3884.8,6.55213509]
[1754603331310,0.5136,3884.9,3884.8,6.55213509]
[1754603331501,0.04,3884.9,3884.8,6.74645098]
[1754603331700,0.04,3884.9,3884.8,6.74845098]
[1754603332267,0.04,3885.9,3884.8,6.74845098]
[1754603332268,0.02221057,3886.9,3886.8,2.57281053]
[1754603332519,0.02221057,3886.9,3886.8,6.58781053]
[1754603332819,0.04,3887.9,3887.8,2.57214877]
[1754603333019,0.04,3887.9,3887.8,4.015]
[1754603333225,0.04,3887.9,3887.1,0.55]
[1754603333226,0.01685359,3889.5,3887.6,0.13027077]
[1754603333385,0.01685359,3889.5,3889.4,3.0]
[1754603333593,0.01685359,3889.5,3888.3,13.23490429]
[1754603333814,0.01685359,3889.5,3888.8,12.75730429]
[1754603334013,0.01685359,3889.5,3889.3,0.55]
[1754603334319,0.01685359,3889.5,3889.4,7.067]
[1754603334494,0.01685359,3889.5,3889.4,2.996]
[1754603334695,0.96735359,3889.5,3889.4,0.18941581]
[1754603334895,0.96735359,3889.5,3887.2,6.182]
[1754603335212,0.03213863,3889.4,3887.3,4.075]
[1754603335382,0.4736,3889.3,3887.9,12.75730429]
[1754603335586,0.4769,3889.2,3888.0,4.089]
[1754603335786,0.4736,3889.1,3887.6,6.182]
[1754603336008,0.4769,3889.0,3887.6,6.182]
[1754603336323,2.5719658,3888.1,3887.7,4.099]
[1754603336500,0.9505,3888.0,3887.8,4.102]
[1754603336700,0.9505,3887.9,3887.1,0.04]
[1754603337021,0.4736,3887.8,3887.1,0.04]
[1754603337198,0.4769,3888.4,3887.2,4.101]
[1754603337397,0.4736,3888.8,3887.4,13.08875685]
[1754603337602,0.4736,3889.7,3888.2,0.55]
[1754603337800,0.4736,3889.7,3888.0,10.51637888]
[1754603337801,0.4736,3889.7,3888.4,3.0]
[1754603338003,0.4736,3889.7,3888.6,2.57156721]
[1754603338222,0.4736,3889.7,3889.3,2.57111047]
[1754603338409,0.9505,3889.4,3887.6,0.55]
[1754603338614,0.9505,3889.3,3888.4,2.57172852]
[1754603338922,0.10498389,3889.8,3888.6,2.57161756]
[1754603339120,0.96735359,3889.5,3888.8,2.57142714]
[1754603339325,0.4736,3889.4,3887.9,3.0]
[1754603339524,0.4736,3889.4,3888.2,2.57188416]
[1754603339701,0.4736,3889.4,3888.8,2.57144023]
[1754603339902,0.4736,3889.4,3888.9,4.114]
[1754603340107,0.9505,3889.3,3888.9,4.114]
[1754603340307,0.4736,3889.2,3889.0,2.5713551]
[1754603340503,0.4736,3889.2,3889.1,2.57128898]
[1754603340707,0.4769,3889.3,3888.2,2.5718203]
[1754603340909,10.51637888,3888.3,3883.1,0.04]
[1754603341121,0.55,3885.9,3883.1,0.04]
[1754603341318,2.69563905,3885.8,3883.1,0.5176]
[1754603341507,3.12353887,3885.7,3883.6,3.2636]
[1754603341714,3.55,3885.7,3883.6,3.2636]
[1754603341917,0.4736,3885.6,3884.2,4.341]
[1754603342116,0.4736,3885.6,3883.3,4.34]
[1754603342117,2.57437683,3884.5,3883.3,4.34]
[1754603342303,0.9454,3884.4,3883.6,2.57491215]
[1754603342501,0.9454,3884.4,3883.7,2.57484309]
[1754603342697,0.9454,3884.3,3883.3,4.34]
[1754603342926,2.57453272,3884.2,3883.3,4.34]
[1754603343127,3.51993272,3884.2,3883.1,0.04]
[1754603343632,3.55211437,3884.2,3883.1,0.04]
[1754603343939,2.57519571,3883.2,3883.1,0.04]
[1754603344100,0.9454,3884.1,3883.1,0.04]
[1754603344300,0.4736,3884.0,3883.1,2.61522853]
[1754603344731,0.4736,3884.0,3883.1,0.04]
[1754603345105,0.4736,3884.0,3883.1,2.61525663]
[1754603345306,0.4736,3884.0,3883.1,0.04]
[1754603345506,2.57473801,3883.9,3883.1,0.04]
[1754603345806,0.4736,3883.8,3883.1,0.04]
[1754603346011,0.9454,3883.8,3883.1,0.04]
[1754603346314,0.1288,3883.4,3883.1,0.04]
[1754603346621,0.4736,3883.3,3883.1,0.04]
[1754603346810,0.4736,3883.2,3883.1,0.04]
[1754603350743,2.57302311,3886.5,3883.1,0.04]
[1754603350744,0.4736,3883.6,3883.1,0.04]
[1754603350944,0.4736,3883.5,3883.1,0.04]
[1754603351320,0.4736,3883.4,3883.1,0.04]
[1754603351640,0.4736,3883.3,3883.1,2.61525627]
[1754603352533,0.4736,3883.7,3883.2,2.57519571]
[1754603352732,0.4756,3884.3,3883.3,0.4776]
[1754603353029,0.4756,3884.3,3884.0,2.57461961]
[1754603353344,0.4756,3884.3,3884.1,2.57458639]
[1754603353913,0.4756,3884.3,3884.0,2.57465672]
[1754603355451,0.002,3884.3,3884.0,2.57465672]
[1754603355655,0.002,3884.3,3883.6,4.7802]
[1754603355656,0.002,3884.3,3883.6,0.4652]
[1754603355814,0.002,3884.3,3884.0,2.57461642]
[1754603356240,0.9197,3884.2,3883.1,4.8142]
[1754603356418,0.9197,3884.2,3883.5,2.57494855]
[1754603356749,0.4479,3884.2,3883.8,2.57473603]
[1754603356950,0.4479,3884.1,3883.9,2.57468657]
[1754603357715,0.002,3884.3,3883.9,2.57468657]
[1754603359063,0.4499,3884.3,3883.9,2.57468657]
[1754603359266,0.002,3884.3,3883.7,0.4652]
[1754603359432,0.002,3884.3,3884.0,0.4652]
[1754603359628,0.002,3884.3,3884.1,2.574599]
[1754603359831,0.002,3884.3,3884.1,3.039799]
[1754603360349,0.002,3884.3,3884.2,3.03973272]
[1754603361337,0.002,3884.3,3884.2,3.16853272]
[1754603361943,0.002,3884.3,3884.2,0.1288]
[1754603362760,0.4499,3884.3,3884.2,0.1288]
[1754603364439,0.002,3884.3,3884.2,0.1288]
[1754603364838,0.002,3884.3,3884.2,3.16853272]
[1754603367959,0.002,3884.3,3884.2,7.44753272]
[1754603369837,0.002,3884.3,3884.2,7.31873272]
[1754603370477,0.002,3884.3,3884.2,7.75633272]
[1754603371098,0.002,3884.3,3884.2,10.31873272]
[1754603371711,0.002,3884.3,3884.2,14.58873272]
[1754603372374,0.002,3884.3,3884.2,15.02633272]
[1754603372781,0.002,3884.3,3884.2,10.30973272]
[1754603372972,0.002,3884.3,3884.2,11.10753272]
[1754603373174,0.4499,3884.3,3884.2,11.10753272]
[1754603373373,0.4499,3884.3,3884.2,4.27]
[1754603373571,0.9217,3884.3,3884.2,4.262]
[1754603374219,0.002,3884.3,3883.9,4.26]
[1754603374369,0.4718,3884.2,3883.9,4.26]
[1754603374575,0.4718,3884.2,3883.2,3.4652]
[1754603374576,0.4479,3884.1,3883.8,4.26]
[1754603374888,2.57647194,3884.3,3883.2,4.258]
[1754603374889,0.9197,3884.0,3883.2,4.258]
[1754603375089,2.57493078,3883.6,3883.2,4.258]
[1754603375274,0.4479,3883.5,3883.1,0.041]
[1754603375584,0.4479,3883.5,3883.1,4.299]
[1754603375585,0.9197,3883.5,3883.1,4.299]
[1754603375785,0.4718,3883.5,3883.1,4.299]
[1754603376005,0.4479,3883.4,3883.1,0.041]
[1754603376177,0.9197,3883.4,3883.1,0.041]
[1754603376378,0.4718,3883.3,3883.1,0.041]
[1754603376578,0.9197,3883.3,3883.1,0.041]
[1754603376795,3.04699571,3883.2,3883.1,0.041]
[1754603377009,3.49489571,3883.2,3883.1,0.041]
[1754603377190,3.52708565,3883.2,3883.1,0.041]